bitfinex/quotes_SOLUSD_20250930
["timestamp","ask_amount","ask_price","bid_price","bid_amount"]
[1759222358232,2.21396887,208.41,208.37,0.71]
[1759222358452,0.72,208.4,208.37,0.71]
[1759222359051,0.72,208.4,208.38,4.79892504]
[1759222360335,0.72,208.4,208.35,16.79848673]
[1759222360533,0.72,208.39,208.35,17.50848673]
[1759222360747,2.21396887,208.39,208.35,4.79961603]
[1759222360961,20.8,208.46,208.35,4.79961603]
[1759222360962,0.72,208.38,208.35,4.79961603]
[1759222361161,23.01396887,208.42,208.36,0.71]
[1759222361341,2.93396887,208.43,208.36,0.71]
[1759222362144,2.93396887,208.43,208.37,4.79915534]
[1759222362348,2.93396887,208.43,208.38,0.71]
[1759222362544,2.21396887,208.42,208.38,0.71]
[1759222362843,2.93396887,208.42,208.38,0.71]
[1759222363161,0.72,208.41,208.37,4.79915534]
[1759222363333,0.72,208.41,208.37,5.50915534]
[1759222363534,0.72,208.41,208.38,0.71]
[1759222364162,0.72,208.41,208.39,4.79869475]
[1759222364537,2.13699721,208.41,208.38,5.50891082]
[1759222364735,2.13699721,208.41,208.38,4.79891082]
[1759222365264,1.41699721,208.4,208.38,4.79891082]
[1759222366369,1.41699721,208.4,208.37,4.79915534]
[1759222366666,1.41699721,208.4,208.37,5.50915534]
[1759222367856,1.41699721,208.43,208.38,0.71]
[1759222368062,2.13699721,208.42,208.38,0.71]
[1759222368254,1.41699721,208.41,208.38,0.71]
[1759222368647,0.72,208.42,208.38,0.71]
[1759222368949,1.41699721,208.41,208.38,0.71]
[1759222369156,1.41699721,208.41,208.39,4.79869475]
[1759222371960,1.41699721,208.41,208.34,4.7998464]
[1759222372166,1.41699721,208.41,208.36,13.59559401]
[1759222372352,1.41699721,208.41,208.37,0.69]
[1759222373377,1.41699721,208.41,208.38,4.79892504]
[1759222373554,1.41699721,208.41,208.39,0.69]
[1759222374065,1.41699721,208.42,208.39,0.69]
[1759222374564,2.11699721,208.42,208.38,4.79892504]
[1759222374762,1.41699721,208.41,208.38,5.48892504]
[1759222375655,2.11699721,208.42,208.37,16.79675117]
[1759222375856,1.41699721,208.42,208.39,0.69]
[1759222376068,1.41699721,208.42,208.4,0.69]
[1759222376669,1.41699721,208.42,208.37,16.79675117]
[1759222376670,2.11699721,208.42,208.37,16.79675117]
[1759222376874,1.41699721,208.41,208.38,0.69]
[1759222377078,1.41699721,208.41,208.39,0.69]
[1759222378473,1.41699721,208.41,208.37,16.79675117]
[1759222378772,1.41699721,208.41,208.38,0.69]
[1759222379872,1.41699721,208.41,208.37,16.79675117]
[1759222380173,1.41699721,208.4,208.39,4.79869475]
[1759222380479,2.11699721,208.4,208.35,18.39521004]
[1759222380672,1.41699721,208.37,208.35,18.39521004]
[1759222380976,1.41699721,208.37,208.35,19.08521004]
[1759222381674,1.41699721,208.36,208.35,4.79961603]
[1759222382275,1.41699721,208.36,208.34,16.79898925]
[1759222382575,1.41699721,208.36,208.34,17.48898925]
[1759222382872,1.41699721,208.36,208.34,5.4898464]
[1759222383060,1.41699721,208.36,208.34,4.7998464]
[1759222383262,2.11699721,208.36,208.34,4.7998464]
[1759222383461,1.41699721,208.36,208.34,4.7998464]
[1759222383672,1.41699721,208.36,208.34,5.4898464]
[1759222384048,1.41699721,208.36,208.33,5.4900768]
[1759222384771,2.11699721,208.36,208.33,5.4900768]
[1759222385088,1.41699721,208.36,208.33,5.4900768]
[1759222385251,1.41699721,208.35,208.33,4.8000768]
[1759222385451,1.41699721,208.35,208.33,5.4900768]
[1759222387255,2.11699721,208.34,208.28,12.692819]
[1759222387452,1.41699721,208.31,208.29,18.39659261]
[1759222387665,1.41699721,208.31,208.29,19.08659261]
[1759222388768,1.41699721,208.32,208.29,19.08659261]
[1759222389500,30.39729955,208.4,208.3,0.69]
[1759222389798,1.41699721,208.35,208.3,0.69]
[1759222389998,2.11699721,208.35,208.31,0.69]
[1759222390790,1.41699721,208.34,208.32,4.80030721]
[1759222391332,2.11699721,208.34,208.32,4.80030721]
[1759222391476,2.11699721,208.34,208.29,26.28809052]
[1759222391673,1.41699721,208.32,208.3,4.80076812]
[1759222392403,2.11699721,208.32,208.3,4.80076812]
[1759222392895,2.11699721,208.32,208.28,13.59559401]
[1759222392896,2.11699721,208.31,208.28,18.39661358]
[1759222394195,2.11699721,208.31,208.28,19.08661358]
[1759222394381,1.41699721,208.32,208.29,0.69]
[1759222394697,1.41699721,208.32,208.3,0.69]
[1759222395280,1.41699721,208.32,208.28,19.08661358]
[1759222395494,1.41699721,208.32,208.3,4.80076812]
[1759222396100,1.41699721,208.32,208.3,5.51076812]
[1759222396478,1.41699721,208.32,208.3,4.80076812]
[1759222396902,2.10699721,208.32,208.3,4.80076812]
[1759222397398,1.41699721,208.32,208.29,4.8009986]
[1759222397584,1.41699721,208.32,208.3,0.71]
[1759222398679,1.41699721,208.32,208.29,4.8009986]
[1759222398874,1.41699721,208.33,208.3,0.71]
[1759222399104,1.41699721,208.33,208.31,0.71]
[1759222399308,1.41699721,208.33,208.29,17.51349511]
[1759222399484,1.41699721,208.33,208.31,4.80053766]
[1759222400583,0.69,208.38,208.32,0.71]
[1759222400908,1.41699721,208.39,208.33,13.59559401]
[1759222401079,1.41699721,208.39,208.34,0.71]
[1759222401476,1.41699721,208.39,208.35,16.7986561]
[1759222401702,1.41699721,208.39,208.36,0.71]
[1759222401895,1.41699721,208.38,208.36,0.71]
[1759222402693,1.41699721,208.38,208.37,4.79915534]
[1759222404099,1.41699721,208.38,208.36,4.79938567]
[1759222404300,1.41699721,208.38,208.36,5.50938567]
[1759222404692,1.41699721,208.38,208.36,4.79938567]
[1759222406198,1.41699721,208.38,208.35,0.71]
[1759222407115,1.41699721,208.38,208.36,0.71]
[1759222408187,1.41699721,208.38,208.37,4.79915534]
[1759222408618,0.68,208.4,208.37,4.79915534]
[1759222408796,1.41699721,208.38,208.37,4.79915534]
[1759222411817,1.41699721,208.38,208.34,16.79935887]
[1759222412019,1.41699721,208.38,208.35,0.71]
[1759222413843,1.41699721,208.38,208.36,4.79938567]
[1759222414792,1.41699721,208.39,208.36,4.79938567]
[1759222415000,1.41699721,208.38,208.36,4.79938567]
[1759222416500,1.41699721,208.38,208.36,5.50938567]
[1759222417737,1.41699721,208.38,208.34,16.79935887]
[1759222418109,1.41699721,208.38,208.35,0.71]
[1759222418309,1.41699721,208.38,208.36,0.71]
[1759222419704,0.68,208.4,208.36,5.50919871]
[1759222420044,2.09699721,208.39,208.36,5.50919871]
[1759222424135,1.41699721,208.38,208.36,5.50919871]
[1759222424633,0.68,208.37,208.34,4.79967349]
[1759222424929,0.68,208.39,208.34,5.50967349]
[1759222425101,1.41699721,208.37,208.35,0.71]
[1759222425818,1.41699721,208.38,208.34,4.79967349]
[1759222426014,1.41699721,208.38,208.35,0.71]
[1759222426214,2.21487851,208.38,208.35,0.71]
[1759222427032,2.21487851,208.38,208.35,5.50944061]
[1759222427735,2.21487851,208.36,208.3,200.11164908]
[1759222428029,2.21487851,208.34,208.31,4.80030951]
[1759222428419,0.68,208.34,208.31,4.80030951]
[1759222428619,2.21487851,208.34,208.31,5.51030951]
[1759222428820,0.68,208.33,208.27,4.80125583]
[1759222429023,0.68,208.32,208.28,5.51121945]
[1759222429427,0.68,208.32,208.29,0.71]
[1759222430123,2.89487851,208.32,208.29,0.71]
[1759222430441,2.89487851,208.32,208.29,5.51098876]
[1759222430743,2.21487851,208.32,208.29,5.51098876]
[1759222431239,20.8,208.36,208.27,13.59559401]
[1759222431240,0.68,208.31,208.27,13.59559401]
[1759222431413,0.68,208.3,208.26,13.59559401]
[1759222431732,2.21487851,208.29,208.25,0.72]
[1759222432141,2.21487851,208.29,208.25,4.8017054]
[1759222432337,2.92487851,208.29,208.25,5.5217054]
[1759222433220,2.92487851,208.29,208.26,0.72]
[1759222433636,2.92487851,208.29,208.26,5.5216887]
[1759222433835,2.92487851,208.28,208.24,39.12195601]
[1759222434032,2.21487851,208.28,208.25,0.72]
[1759222434618,2.92487851,208.28,208.25,0.72]
[1759222435321,2.92487851,208.28,208.24,39.12195601]
[1759222435637,2.21487851,208.27,208.24,39.12195601]
[1759222435837,20.8,208.32,208.24,39.12195601]
[1759222435838,2.92487851,208.26,208.24,33.6]
[1759222436142,0.71,208.25,208.22,5.52244335]
[1759222436640,2.92487851,208.25,208.22,4.80244335]
[1759222436844,2.92487851,208.25,208.22,5.52244335]
[1759222437947,2.21487851,208.25,208.22,5.52244335]
[1759222438445,0.71,208.24,208.2,14.71111675]
[1759222438648,7.01634024,208.27,208.2,19.51401634]
[1759222438649,0.71,208.23,208.2,19.51401634]
[1759222438827,0.71,208.23,208.2,4.80289959]
[1759222439342,0.71,208.23,208.2,5.52289959]
[1759222439550,0.71,208.25,208.2,20.30302638]
[1759222439728,0.71,208.24,208.2,20.30302638]
[1759222440718,2.21487851,208.25,208.2,20.30302638]
[1759222440922,0.71,208.24,208.2,20.30302638]
[1759222441357,2.21487851,208.25,208.2,20.30302638]
[1759222441553,0.71,208.24,208.2,20.30302638]
[1759222442244,0.71,208.23,208.2,20.30302638]
[1759222442444,2.21487851,208.21,208.17,0.1]
[1759222442835,2.21487851,208.19,208.17,0.1]
[1759222443042,0.71,208.2,208.17,0.1]
[1759222443043,2.21487851,208.18,208.17,0.1]
[1759222443538,2.92487851,208.18,208.17,0.1]
[1759222443736,20.8,208.22,208.17,0.1]
[1759222443947,20.8,208.22,208.17,5.62376615]
[1759222443948,2.21487851,208.22,208.17,5.62376615]
[1759222444150,2.21487851,208.21,208.18,0.72]
[1759222444454,0.71,208.23,208.19,4.80330467]
[1759222444757,2.92487851,208.22,208.19,4.80330467]
[1759222445058,2.21487851,208.21,208.17,5.62360918]
[1759222445255,2.92487851,208.21,208.17,5.62360918]
[1759222445452,2.92487851,208.21,208.18,0.72]
[1759222446045,2.92487851,208.21,208.17,4.90360918]
[1759222446243,2.92487851,208.21,208.17,5.62360918]
[1759222446756,2.92487851,208.2,208.17,0.1]
[1759222446959,2.21487851,208.18,208.17,0.1]
[1759222447340,2.21487851,208.18,208.17,4.90376615]
[1759222447651,2.21487851,208.19,208.17,5.62376615]
[1759222447867,2.21487851,208.19,208.17,4.90376615]
[1759222448335,2.92487851,208.19,208.17,4.90376615]
[1759222449668,2.21487851,208.19,208.17,4.90376615]
[1759222450040,2.21487851,208.19,208.17,0.1]
[1759222450258,2.21487851,208.18,208.17,0.1]
[1759222450463,2.21487851,208.18,208.17,4.90376615]
[1759222451330,2.92487851,208.18,208.17,4.90376615]
[1759222451544,2.92487851,208.18,208.17,0.1]
[1759222453132,7.72841391,208.18,208.17,0.1]
[1759222453660,2.92487851,208.18,208.17,0.1]
[1759222459764,36.54487851,208.18,208.17,0.1]
[1759222461870,41.34841391,208.18,208.17,0.1]
[1759222463543,39.1335354,208.18,208.17,0.1]
[1759222463869,41.34841391,208.18,208.17,0.1]
[1759222464162,34.33,208.18,208.17,0.1]
[1759222464367,36.54487851,208.18,208.17,0.1]
[1759222466575,41.34841391,208.18,208.17,0.1]
[1759222466869,36.54487851,208.18,208.17,0.1]
[1759222467173,20.8,208.19,208.17,0.1]
[1759222467343,4.80286091,208.21,208.17,0.1]
[1759222467344,56.63487851,208.18,208.17,0.1]
[1759222469048,57.35487851,208.18,208.17,0.1]
[1759222469874,56.63487851,208.18,208.17,0.1]
[1759222471485,55.14,208.18,208.17,0.1]
[1759222472484,33.62,208.18,208.17,5.58376615]
[1759222472678,20.8,208.19,208.17,5.58376615]
[1759222472975,33.62,208.18,208.17,5.58376615]
[1759222473772,33.62,208.18,208.17,4.90376615]
[1759222475183,33.62,208.18,208.17,0.1]
[1759222476056,33.62,208.18,208.17,0.78]
[1759222476257,2.93487851,208.2,208.17,0.1]
[1759222476483,33.62,208.19,208.17,4.90375993]
[1759222476662,34.34,208.19,208.17,0.1]
[1759222477488,0.72,208.18,208.17,0.1]
[1759222477658,36.55487851,208.19,208.17,0.1]
[1759222478486,2.93487851,208.18,208.17,0.1]
[1759222478788,7.73841391,208.18,208.17,0.1]
[1759222478980,5.5235354,208.18,208.17,0.1]
[1759222479175,7.73841391,208.18,208.17,0.1]
[1759222480668,2.93487851,208.18,208.17,0.1]
[1759222481062,36.55487851,208.18,208.17,0.1]
[1759222481973,41.35841391,208.18,208.17,0.1]
[1759222482172,0.72,208.21,208.17,0.1]
[1759222482493,26.7,208.2,208.17,0.78]
[1759222482783,20.8,208.19,208.17,0.78]
[1759222482986,33.62,208.19,208.18,0.68]
[1759222483192,2.21487851,208.22,208.18,0.68]
[1759222483485,33.62,208.21,208.18,0.68]
[1759222483790,35.83487851,208.21,208.18,0.68]
[1759222483993,35.83487851,208.21,208.17,4.90376528]
[1759222484168,33.62,208.2,208.18,0.68]
[1759222485167,33.62,208.2,208.17,4.90376528]
[1759222485368,33.62,208.2,208.17,5.58376528]
[1759222486689,33.62,208.2,208.18,0.68]
[1759222486878,33.62,208.2,208.17,4.90376528]
[1759222487084,33.62,208.2,208.18,0.68]
[1759222487689,33.62,208.2,208.18,5.48353314]
[1759222488074,35.83487851,208.21,208.18,5.48353314]
[1759222488269,35.75993333,208.21,208.18,5.48353314]
[1759222488476,35.75993333,208.21,208.18,4.80353314]
[1759222489467,33.62,208.21,208.18,5.48353314]
[1759222489672,0.72,208.22,208.18,5.48353314]
[1759222489866,34.34,208.22,208.18,5.48353314]
[1759222490176,33.62,208.22,208.19,0.68]
[1759222490769,33.62,208.22,208.2,0.68]
[1759222491274,33.62,208.22,208.2,4.80288863]
[1759222491675,33.62,208.22,208.2,5.49288863]
[1759222491878,33.6,208.23,208.21,0.69]
[1759222492087,33.6,208.23,208.2,4.80288863]
[1759222492295,33.6,208.23,208.2,5.49288863]
[1759222493281,34.31,208.23,208.2,4.80288863]
[1759222493480,34.31,208.23,208.2,5.49288863]
[1759222493984,34.31,208.23,208.2,4.80288863]
[1759222494171,0.71,208.27,208.21,0.69]
[1759222494370,33.6,208.26,208.21,0.69]
[1759222494570,34.31,208.26,208.21,0.69]
[1759222494793,34.31,208.26,208.22,0.69]
[1759222495090,35.01993333,208.26,208.21,5.49265176]
[1759222495301,0.71,208.25,208.21,5.49265176]
[1759222495474,0.71,208.24,208.21,5.49265176]
[1759222495995,35.01993333,208.26,208.21,5.49265176]
[1759222496205,0.71,208.25,208.21,5.49265176]
[1759222496688,0.71,208.25,208.18,16.8123739]
[1759222496889,0.71,208.25,208.21,0.69]
[1759222497298,0.71,208.25,208.22,0.69]
[1759222497882,0.71,208.25,208.21,0.69]
[1759222498294,0.71,208.25,208.22,0.69]
[1759222498490,20.8,208.27,208.23,0.69]
[1759222498794,33.6,208.26,208.24,4.80215136]
[1759222499098,33.6,208.26,208.24,5.49215136]
[1759222499309,34.31,208.26,208.24,4.80215136]
[1759222499598,0.71,208.25,208.22,4.80261262]
[1759222499798,0.71,208.25,208.22,5.49261262]
[1759222500491,0.71,208.31,208.23,0.69]
[1759222500690,1.41993333,208.29,208.24,4.80215136]
[1759222500878,2.12993333,208.28,208.24,0.69]
[1759222501080,0.71,208.27,208.24,0.69]
[1759222501280,0.71,208.27,208.18,44.81760896]
[1759222501485,0.71,208.27,208.22,0.69]
[1759222501676,2.12993333,208.26,208.2,12.69768491]
[1759222501980,0.71,208.26,208.21,0.69]
[1759222502186,0.71,208.26,208.22,0.69]
[1759222502388,2.12993333,208.26,208.22,0.69]
[1759222502578,0.71,208.26,208.23,4.80238198]
[1759222502781,2.12993333,208.26,208.23,4.80238198]
[1759222503800,35.01993333,208.27,208.23,5.49238198]
[1759222503978,34.31,208.27,208.23,5.49238198]
[1759222504577,35.01993333,208.27,208.23,4.80238198]
[1759222504801,0.71,208.26,208.23,4.80238198]
[1759222505303,0.71,208.26,208.23,5.49238198]
[1759222505478,2.12993333,208.26,208.23,5.49238198]
[1759222505683,2.12993333,208.26,208.23,4.80238198]
[1759222505902,2.12993333,208.26,208.23,5.49238198]
[1759222506313,33.6,208.27,208.24,0.69]
[1759222506792,33.6,208.27,208.24,5.49206937]
[1759222507283,33.6,208.27,208.25,0.69]
[1759222508604,33.6,208.27,208.24,4.80206937]
[1759222508804,33.6,208.27,208.24,0.69]
[1759222509186,0.71,208.26,208.21,0.69]
[1759222509378,2.12993333,208.25,208.19,16.81156635]
[1759222509576,2.12993333,208.24,208.19,4.80330467]
[1759222509804,2.12993333,208.23,208.19,4.80330467]
[1759222510012,0.71,208.22,208.19,4.80330467]
[1759222510502,0.71,208.22,208.18,4.8035354]
[1759222510676,0.71,208.22,208.18,5.4935354]
[1759222511208,0.71,208.24,208.19,0.69]
[1759222511433,2.12993333,208.24,208.2,0.69]
[1759222511605,0.71,208.23,208.18,5.4935354]
[1759222511803,2.12993333,208.23,208.18,4.8035354]
[1759222511997,2.12993333,208.23,208.19,0.69]
[1759222512208,0.71,208.23,208.2,0.69]
[1759222512389,0.71,208.23,208.18,5.4935354]
[1759222512585,1.41993333,208.21,208.17,0.1]
[1759222512914,1.41993333,208.19,208.17,0.1]
[1759222513407,2.12993333,208.19,208.17,0.1]
[1759222514306,1.41993333,208.19,208.17,0.1]
[1759222514490,2.12993333,208.19,208.17,0.1]
[1759222514808,0.71,208.19,208.17,0.1]
[1759222514989,1.41993333,208.21,208.17,5.59371421]
[1759222515309,1.41993333,208.21,208.17,0.1]
[1759222515512,0.71,208.2,208.17,0.1]
[1759222515715,2.12993333,208.2,208.17,0.1]
[1759222516095,0.71,208.19,208.17,0.1]
[1759222516297,2.12993333,208.2,208.17,0.1]
[1759222516498,2.12993333,208.2,208.17,4.90364198]
[1759222516698,0.71,208.2,208.17,4.90364198]
[1759222517592,21.48,208.23,208.18,0.69]
[1759222517890,35.01993333,208.21,208.18,0.69]
[1759222518090,2.09993333,208.24,208.19,0.69]
[1759222518313,33.6,208.23,208.2,0.69]
[1759222518685,0.68,208.22,208.18,0.69]
[1759222519400,0.68,208.22,208.18,5.49348898]
[1759222519596,2.09993333,208.22,208.18,5.49348898]
[1759222520517,0.68,208.21,208.18,4.80348898]
[1759222520884,1.41993333,208.22,208.17,0.1]
[1759222521097,0.68,208.2,208.17,5.59375596]
[1759222521299,0.68,208.2,208.17,4.90375596]
[1759222521709,0.68,208.2,208.17,5.56375596]
[1759222521901,0.68,208.2,208.17,4.90375596]
[1759222523322,1.41993333,208.21,208.17,0.1]
[1759222523497,0.67,208.19,208.17,0.1]
[1759222524018,0.67,208.18,208.17,0.1]
[1759222525116,40.49346873,208.18,208.17,0.1]
[1759222526898,35.68993333,208.18,208.17,0.1]
[1759222527097,0.67,208.25,208.17,5.56376615]
[1759222527301,0.67,208.25,208.18,0.66]
[1759222527517,33.6,208.24,208.18,0.66]
[1759222528296,35.01993333,208.24,208.19,4.80330467]
[1759222528522,35.68993333,208.24,208.2,0.66]
[1759222529626,33.6,208.24,208.2,0.66]
[1759222530004,34.27,208.24,208.2,0.66]
[1759222530324,35.68993333,208.24,208.2,0.66]
[1759222530500,35.68993333,208.24,208.19,4.80330467]
[1759222530701,35.68993333,208.24,208.19,5.46330467]
[1759222531324,0.67,208.23,208.19,5.46330467]
[1759222531624,33.6,208.23,208.19,4.80330467]
[1759222531916,33.6,208.23,208.2,0.66]
[1759222532621,2.08993333,208.25,208.2,0.66]
[1759222532820,20.8,208.28,208.21,0.66]
[1759222533021,2.08993333,208.31,208.21,0.66]
[1759222533226,33.6,208.3,208.21,0.66]
[1759222533428,33.6,208.3,208.22,16.80914417]
[1759222533625,33.6,208.3,208.23,0.66]
[1759222533947,16.97260362,208.57,208.23,0.66]
[1759222533948,0.67,208.35,208.24,34.39559401]
[1759222534098,24.28,208.34,208.25,0.66]
[1759222534298,0.67,208.37,208.26,13.59559401]
[1759222534503,33.6,208.36,208.27,0.66]
[1759222534718,34.27,208.36,208.27,0.66]
[1759222534918,1.41993333,208.35,208.27,0.66]
[1759222535097,34.27,208.36,208.27,0.66]
[1759222535098,2.08993333,208.34,208.27,0.66]
[1759222535723,1.41993333,208.32,208.25,0.66]
[1759222535924,1.41993333,208.31,208.25,0.66]
[1759222536224,2.08993333,208.31,208.25,0.66]
[1759222537021,0.67,208.31,208.25,5.46192076]
[1759222537221,0.67,208.31,208.26,0.66]
[1759222537424,0.67,208.31,208.27,0.66]
[1759222538526,22.88993333,208.33,208.28,0.66]
[1759222539732,22.21993333,208.33,208.28,5.46113117]
[1759222539907,0.67,208.32,208.28,5.46113117]
[1759222540636,0.67,208.32,208.28,4.80113117]
[1759222540806,0.67,208.32,208.28,5.46113117]
[1759222541006,2.08993333,208.32,208.28,0.66]
[1759222541231,2.08993333,208.32,208.25,12.00480192]
[1759222541232,2.08993333,208.32,208.26,4.80169019]
[1759222541462,2.08993333,208.32,208.26,5.46169019]
[1759222541838,2.08993333,208.32,208.26,4.80169019]
[1759222542138,0.67,208.4,208.31,20.8]
[1759222542343,33.68,208.41,208.32,0.66]
[1759222542641,35.09993333,208.41,208.32,0.66]
[1759222543010,0.67,208.4,208.32,0.66]
[1759222543230,1.41993333,208.38,208.32,0.66]
[1759222543531,2.08993333,208.38,208.32,0.66]
[1759222543730,0.67,208.38,208.32,0.66]
[1759222543937,2.08993333,208.38,208.32,5.46010591]
[1759222544137,0.67,208.37,208.32,5.46010591]
[1759222544343,1.41993333,208.33,208.27,15.09452738]
[1759222544519,0.67,208.32,208.27,5.46145027]
[1759222544842,0.67,208.31,208.27,5.46145027]
[1759222545019,1.41993333,208.32,208.27,5.46145027]
[1759222545217,0.67,208.31,208.27,5.46145027]
[1759222545922,2.08993333,208.33,208.28,0.66]
[1759222546239,1.41993333,208.34,208.29,0.66]
[1759222546546,0.67,208.34,208.3,0.66]
[1759222546725,1.41993333,208.34,208.27,4.80145027]
[1759222546927,2.08993333,208.36,208.28,0.66]
[1759222547529,0.67,208.36,208.28,0.66]
[1759222547748,0.67,208.36,208.29,4.8009986]
[1759222548051,0.67,208.36,208.3,0.66]
[1759222548653,0.67,208.45,208.34,20.8]
[1759222548825,0.67,208.45,208.35,0.66]
[1759222549640,0.67,208.45,208.36,16.79784986]
[1759222549948,21.47,208.45,208.37,0.66]
[1759222550545,28.4808179,208.45,208.37,0.66]
[1759222550939,26.26741849,208.45,208.37,0.66]
[1759222551127,28.4808179,208.45,208.37,0.66]
[1759222551322,26.26741849,208.45,208.37,0.66]
[1759222551527,26.26741849,208.45,208.38,4.79892504]
[1759222551750,0.71,208.44,208.38,4.79892504]
[1759222552245,0.71,208.44,208.38,5.49892504]
[1759222553525,0.71,208.44,208.39,0.7]
[1759222554441,2.92339941,208.47,208.4,0.7]
[1759222554638,0.71,208.54,208.45,13.59559401]
[1759222554848,12.70846419,208.57,208.48,20.8]
[1759222555131,0.71,208.57,208.49,0.7]
[1759222555536,0.71,208.57,208.5,4.79616306]
[1759222555755,0.2,208.59,208.51,0.7]
[1759222556060,0.2,208.59,208.52,13.59559401]
[1759222556230,0.2,208.59,208.51,0.7]
[1759222556231,0.2,208.59,208.53,0.7]
[1759222557331,0.71,208.58,208.51,0.7]
[1759222557839,0.71,208.58,208.52,4.79570305]
[1759222558038,2.92339941,208.57,208.49,0.7]
[1759222558763,0.71,208.57,208.49,0.7]
[1759222559137,0.71,208.57,208.49,5.49639311]
[1759222559831,0.71,208.57,208.49,4.79639311]
[1759222560032,0.71,208.57,208.5,0.7]
[1759222560864,7.71796845,208.57,208.49,4.79639311]
[1759222561159,2.92339941,208.56,208.49,4.79639311]
[1759222561661,2.21339941,208.55,208.49,4.79639311]
[1759222561862,7.0085753,208.55,208.48,0.7]
[1759222562070,7.0085753,208.55,208.47,20.8]
[1759222562071,2.21339941,208.53,208.47,20.8]
[1759222562232,2.21339941,208.51,208.44,4.79754365]
[1759222562429,2.92339941,208.5,208.44,5.49754365]
[1759222562666,2.21339941,208.49,208.44,5.49754365]
[1759222562834,0.71,208.49,208.44,4.79754365]
[1759222563029,2.21339941,208.51,208.45,0.7]
[1759222563545,2.21339941,208.5,208.45,5.49723651]
[1759222563750,0.71,208.49,208.45,5.49723651]
[1759222564538,34.04,208.54,208.45,5.49723651]
[1759222564751,2.21339941,208.5,208.45,5.49723651]
[1759222565058,2.92339941,208.49,208.42,0.7]
[1759222565235,2.21339941,208.48,208.42,21.5]
[1759222565434,2.92339941,208.48,208.42,0.7]
[1759222566129,2.92339941,208.48,208.42,5.49800403]
[1759222566334,2.21339941,208.49,208.43,0.7]
[1759222566660,2.92339941,208.5,208.43,0.7]
[1759222567036,34.04,208.51,208.43,0.7]
[1759222567248,34.75,208.52,208.43,0.7]
[1759222567443,2.21339941,208.51,208.43,0.7]
[1759222568246,36.96339941,208.52,208.44,16.79140279]
[1759222568565,2.92339941,208.52,208.45,0.7]
[1759222569562,0.71,208.52,208.46,4.79708337]
[1759222570164,2.92339941,208.52,208.46,5.49708337]
[1759222570348,0.71,208.52,208.46,5.49708337]
[1759222570661,2.92339941,208.52,208.46,5.49708337]
[1759222571065,36.94339941,208.52,208.46,5.49708337]
[1759222571242,2.92339941,208.52,208.46,5.49708337]
[1759222571445,36.94339941,208.52,208.46,5.49708337]
[1759222571867,2.21339941,208.51,208.46,5.49708337]
[1759222572164,0.71,208.51,208.46,5.49708337]
[1759222574564,0.71,208.51,208.44,11.99385914]
[1759222574766,33.98,208.51,208.47,0.7]
[1759222575137,34.69,208.51,208.45,0.7]
[1759222575336,36.90339941,208.51,208.45,0.7]
[1759222575754,36.90339941,208.51,208.46,4.79708337]
[1759222576071,34.69,208.51,208.46,5.45708337]
[1759222576542,0.72,208.51,208.46,5.45708337]
[1759222576848,20.8,208.55,208.47,0.66]
[1759222577051,0.72,208.55,208.47,0.66]
[1759222577272,34.1,208.54,208.47,0.66]
[1759222577456,36.31339941,208.54,208.47,0.66]
[1759222578374,37.03339941,208.54,208.48,4.79662317]
[1759222579780,2.21339941,208.52,208.46,25.59692761]
[1759222579940,38.89528434,208.54,208.46,25.59692761]
[1759222579941,2.93339941,208.51,208.46,4.79692761]
[1759222580144,2.93339941,208.5,208.44,4.79735966]
[1759222580574,0.72,208.5,208.44,5.45735966]
[1759222582176,2.93339941,208.5,208.44,5.45735966]
[1759222582980,37.03339941,208.5,208.44,5.45735966]